Workbook

Sheet Start
AD1: 0 | AE1: Start
H2: Modul 02 : Unternehmensgründung | AD2: =AD1+1 -> 1 | AE2: 01_Einführung
AD3: =AD2+1 -> 2 | AE3: 02_Kostenvergleich_1
M4: Zu dieser Datei: | AD4: 3 | AE4: 02_Kostenvergleich_2A
AD5: 4 | AE5: 03_Gewinnvergleich_1
M6: Diese Datei enthält die Grundlagen, Formel-Berechnungen sowie zugehörige | AD6: 5 | AE6: 03_Gewinnvergleich_2A
M7: Fallbeispiele zum Thema "Investitionsrechnung". | AD7: 6 | AE7: 04_Rentabelvergleich_1
M8: Behandelt werden die Methoden der | AD8: 7 | AE8: 04_Rentabelvergleich_2A
N9: - statischen Investitionsrechnung wie | AD9: 8 | AE9: 05_Amortisation_1
N10: Kosten-, Gewinn-, Rentabilitäts- und Amortisationsvergleichsrechnung | AD10: 9 | AE10: 05_Amortisation_2A
M11: sowie die Methoden der | AD11: 10 | AE11: 05_Amortisation_3A
N12: - dynamischen Investitionsrechnung wie | AD12: 11 | AE12: 06_Kapitalwert_1
N13: Kapitelwertmethode, Methode des internenen Zinsfußes und die | AD13: 12 | AE13: 06_Kapitalwert_2A
N14: Annuitäten-Methode. | AD14: 13 | AE14: 07_Int_Zinsfuss_1
M15: Zu den Fallbeispielen als Übungsaufgaben können die zugehörigen Muster- | AD15: 14 | AE15: 07_Int_Zinsfuss_2A
M16: lösungen (mit Möglichkeiten der Variation der Parameter-Werte) eingeblendet | AD16: 15 | AE16: 08_Annuitaet_1
M17: werden. | AD17: 16 | AE17: 08_Annuitaet_2A
F20: Tabellen-Auswahl
F21: 0

Sheet 01_Einführung
C4: Investitionsrechnung
C6: 1. EINFÜHRUNG
C7: Investitionen (in Unternehmen) sind geplante bzw. realisierte Vorhaben der Verwendung finanzieller Mittel
C8: zum Zwecke des Aufbaus, des Ersatzes bzw. der Erweiterung des eigenen "Produktionsapparats", und zwar mit
C9: Ziel, das Bestehens des betreffenden Unternehmens im marktwirtschaftlichen Leistungs- und Preiswettbewerb
C10: zu sichern.
C11: Der Investitionsprozess in Unternehmen ist ursächlich immer mit der Vorbereitung und dem Treffen von Entschei-
C12: dungen verbunden, die oft ein erhebliches Risiko in sich bergen.
C13: Dies deshalb, weil nur wenige Sachverhalte, die die Grundlage einer Investitionsentscheidung bilden, als sicher ange-
C14: sehen werden können, während die meisten Sachverhalte mehr oder weniger mit Unsicherheiten aufweisen und
C15: zum Teil sogar ungewiss sind.
C16: Aufgabe und Ziel der Wirtschaftlichkeitsberechnung von Investitionsvorhaben ist es, in einem ersten Schritt zu über-
C17: prüfen, ob eine - zu einem definierten Investitionsvorhaben ausgearbeitete - Investitionsalternative die vorgegebenen
C18: Wirtschaftlichkeitsbedingungen (z. B. hinsichtlich Investitionsaufwand, genereller Nutzen, Dauer der Pay-back-Periode
C19: u. a.) sowie auch andere Anforderungen (wie Umweltverträglichkeit, Kapazitätswirkung, Störanfälligkeit u. a.) über-
C20: haupt erfüllt.
C21: Ist dies der Fall, kann diese Investitionsalternative als zulässige Variante in die weiteren Bewertungen einbezogen
C22: werden.
C23: In einem zweiten Schritt ist dann aus allen zulässigen Alternativen diejenige Variante zu bestimmen, die nach einem
C24: definierten Entscheidungskriterium (z. B. Kosten, Gewinn, Rentabilität, Kapitalwert u. a.) den Bestwert erreicht:
C41: Je nachdem, in welcher Weise die Daten für die eigentliche Investitionsrechnung ermittelt und bestimmt werden, wird
C42: zwischen
D43: - statischen Methoden der Investitionsrechnung und
D44: - dynamischen Methoden der Investitionsrechnung
C45: unterschieden.
C46: Nachfolgend werden die typischen statischen und dynamischen Methoden der Investitionsrechnung in ihren
C47: Berechnungsgrundlagen sowie in ihrem Anwendungsbezug (mit Beispielen) vorgestellt und erörtert.

Sheet 02_Kostenvergleich_1
C4: Investitionsrechnung
C6: 2. Statische Methoden der Investitionsrechnung
C8: 2.1 Merkmale
C9: Grundmerkmal aller statischen Methoden der Investitionsrechnung ist, dass sich die Daten auf einen bestimmten
C10: Zeitraum (in der Regel auf ein Jahr) beziehen.
C11: Dabei werden für Kosten und Erlöse in der Regel Durchschnittswerte angesetzt. Es werden somit keine Zahlungsströme
C12: (Einzahlungen, Auszahlungen über der Nutzungszeit des Objekts) betrachtet.
C13: Diese Methoden eigenen sich für Wirtschaftlichkeitsberechnungen vor allem dann, wenn es um den Vergleich abgrenz-
C14: barer, gleichartiger Investitionsobjekte (wie Maschinen, Anlagen, Fahrzeuge und dgl.) geht.
C16: 2.2 Kostenvergleichsrechnung: Grundlagen
C17: Die Kostenvergleichsrechnung ist eine klassische Methode der statischen Investitionsrechnung, die darauf abzielt, die
C18: Vorteilhaftigkeit einer Investition durch Vergleich der Gesamtkosten (Fixkosten + variable Kosten) der jeweiligen
C19: Investitionsalternativen zu ermitteln.
C20: Zugleich gilt es zu ermitteln, bei welcher kritischen Auslastung die Gesamtkosten der alternativen Angebote gleich sind,
C21: um sichtbar zu machen, bei welchem Jahresbedarf man sich für das eine oder für das andere Angebot zu entscheiden hat.
C22: Die Gesamtkosten K eines Investitionsobjekts (z. B. einer anzuschaffenden Maschine) ergeben sich aus der Addition von
C23: fixen Kosten (Kf) und variablen Kosten (Kv).
E25: Investitionsalternative 1 | M25: Investitionsalternative 2 (kostengünstiger)
J27: K1 | N27: K2 < K1
J28: Kv,1 | R28: K2
R29: Kv,2
N30: Kf,2 | R30: Kf,2
F31: Kf,1 | J31: Kf,1
H32: Kv,1
P34: Kv, 2
C36: Als fixe Kosten werden in die Vergleichsrechnung einbezogen:
D38: a) der Betrag der jährlichen kalkulatorischen Abschreibungen (Symbol Q [EUR/a]),
D39: b) der Betrag der jährlichen kalkulatorischen Zinsen (Symbol Z [EUR/a]) als Kennzeichen der Kapitalbindung sowie
D40: c) der Betrag sonstiger fixer Kosten (Symbol Kf,sonst [EUR/a]), z. B. fixe Raumkosten, fixe Versicherungsbeträge u. a.
C42: Als variable Kosten werden in die Vergleichsrechnung einbezogen:
D44: a) der Betrag variabler Material-/Energiekosten (Symbol kv, M [EUR/ME]),
D45: b) der Betrag variabler Personalkosten (Löhne) (Symbol kv, L [EUR/ME]) sowie
D46: c) der Betrag sonstiger variabler Kosten (Symbol kv,sonst [EUR/ME]), z. B. variable Logistikkosten u. a.
C48: Berechnungsformel, Fallbeispiel: Siehe Folgeblatt!

Sheet 02_Kostenvergleich_2A
C4: Investitionsrechnung
C6: 2. Statische Methoden der Investitionsrechnung
C8: 2.2 Kostenvergleichsrechnung: Formeln, Fallbeispiel
C9: a) Ermittlung der kritischen Grenze (Symbol x0 [ME]):
C10: Um die kritische Grenze zu ermitteln, gehen wir davon aus, dass es eine bestimmte Leistungsmenge x0 [ME]
C11: geben wird, bei der die Gesamtkosten in den Angeboten 1 und 2 gleich sind:
D13: Kf ,1 + kv, 1 * x0 = Kf, 2 + kv, 2 * x0 | F13: (2.1)
C15: Durch Umstellung dieser Gleichung nach der Größe x0 erhalten wir folgendes Ergebnis:
F17: (2.2) | G17: Dies gilt für den Fall Kf, 2 > Kf, 1
C20: b) Fallbeispiel FB1
C21: Der Gründer Max Muster plant die Anschaffung eines Klein-Transporters für sein neues Unternehmen.
C22: Folgende zwei Angebote mit den nachstehend aufgeführten Daten kommen in die engere Auswahl:
C24: Nr. | D24: Angabe | E24: Maßeinheit | F24: Angebot 1 | G24: Angebot 2
C25: 1 | D25: Anschaffungskosten | E25: EUR | F25: 25000 | G25: 42000
C26: =C25+1 -> 2 | D26: Restwert | E26: EUR | F26: 9000 | G26: 14000
C27: =C26+1 -> 3 | D27: Nutzungsdauer | E27: Jahre [a] | F27: 8 | G27: 8
C28: 4 | D28: Jahresleistung (genutzte Leistung) | E28: km/a | F28: 50000 | G28: =F28 -> 50000
C29: 5 | D29: Kalkulatorischer Zinssatz | E29: % p .a. | F29: 6 | G29: =F29 -> 6
C30: 6 | D30: Sonstige fixe Kosten | E30: EUR | F30: 3600 | G30: 6200
C31: 7 | D31: variable Material-/Kraftstoffkosten | E31: EUR/km | F31: 0.32 | G31: 0.22
C32: 8 | D32: sonstige variable Kosten | E32: EUR/km | F32: 0.12 | G32: 0.08
C34: Aufgabe: Ermitteln Sie durch Kostenvergleich, welches der beiden Angebote zur Realisierung vorzuschlagen ist!
C35: Des Weiteren ist die kritische Grenze x0 zu berechnen!
C37: Berechnungstabelle
C38: 01 | D38: kalkulatorische Abschreibungen | E38: EUR/a
C39: 02 | D39: kalkulatorische Zinsen | E39: EUR/a
C40: 03 | D40: sonstige fixe Kosten | E40: EUR/a
C41: 04 | D41: Fixe Kosten gesamt | E41: EUR/a
C42: 05 | D42: variable Material-/Kraftstoffkosten | E42: EUR/a
C43: 07 | D43: sonstige variable Kosten | E43: EUR/a
C44: 08 | D44: Variable Kosten gesamt | E44: EUR/a
C45: 09 | D45: Gesamtkosten | E45: EUR/a
C46: 10 | D46: Wertung
C47: 11 | D47: Variable Kosten je km | E47: EUR/km
F50: Ergebnis
D51: Kritische Grenze x0 = | G51: km.
C55: Kommentar:

Sheet 02_Kostenvergleich_2L (hidden)
C4: Investitionsrechnung
C6: 2. Statische Methoden der Investitionsrechnung
C8: 2.2 Kostenvergleichsrechnung: Formeln, Fallbeispiel
C9: a) Ermittlung der kritischen Grenze (Symbol x0 [ME]):
C10: Um die kritische Grenze zu ermitteln, gehen wir davon aus, dass es eine bestimmte Leistungsmenge x0 [ME]
C11: geben wird, bei der die Gesamtkosten in den Angeboten 1 und 2 gleich sind:
D13: Kf ,1 + kv, 1 * x0 = Kf, 2 + kv, 2 * x0 | F13: (2.1)
C15: Durch Umstellung dieser Gleichung nach der Größe x0 erhalten wir folgendes Ergebnis:
F17: (2.2) | G17: Dies gilt für den Fall Kf, 2 > Kf, 1
C20: b) Fallbeispiel FB1
C21: Der Gründer Max Muster plant die Anschaffung eines Klein-Transporters für sein neues Unternehmen.
C22: Folgende zwei Angebote mit den nachstehend aufgeführten Daten kommen in die engere Auswahl:
C24: Nr. | D24: Angabe | E24: Maßeinheit | F24: Angebot 1 | G24: Angebot 2
C25: 1 | D25: Anschaffungskosten | E25: EUR | F25: 25000 | G25: 42000
C26: =C25+1 -> 2 | D26: Restwert | E26: EUR | F26: 9000 | G26: 14000
C27: =C26+1 -> 3 | D27: Nutzungsdauer | E27: Jahre [a] | F27: 8 | G27: 8
C28: 4 | D28: Jahresleistung (genutzte Leistung) | E28: km/a | F28: 50000 | G28: =F28 -> 50000
C29: 5 | D29: Kalkulatorischer Zinssatz | E29: % p .a. | F29: =H29/10 -> 6 | G29: =F29 -> 6 | H29: 60
C30: 6 | D30: Sonstige fixe Kosten | E30: EUR/a | F30: 3600 | G30: 6200
C31: 7 | D31: variable Material-/Kraftstoffkosten | E31: EUR/km | F31: =H31/100 -> 0.32 | G31: =I31/100 -> 0.22 | H31: 32 | I31: 22
C32: 8 | D32: sonstige variable Kosten | E32: EUR/km | F32: 0.12 | G32: 0.08
C34: Aufgabe: Ermitteln Sie durch Kostenvergleich, welches der beiden Angebote zur Realisierung vorzuschlagen ist!
C35: Des Weiteren ist die kritische Grenze x0 zu berechnen!
C37: Berechnungstabelle | F37: Angebot 1 | G37: Angebot 2
C38: 01 | D38: kalkulatorische Abschreibungen | E38: EUR/a | F38: =(F25-F26)/F27 -> 2000 | G38: =(G25-G26)/G27 -> 3500
C39: 02 | D39: kalkulatorische Zinsen | E39: EUR/a | F39: =(F25+F26)/2*F29/100 -> 1020 | G39: =(G25+G26)/2*G29/100 -> 1680
C40: 03 | D40: sonstige fixe Kosten | E40: EUR/a | F40: =F30 -> 3600 | G40: =G30 -> 6200
C41: 04 | D41: Fixe Kosten gesamt | E41: EUR/a | F41: =SUM(F38:F40) -> 6620 | G41: =SUM(G38:G40) -> 11380
C42: 05 | D42: variable Material-/Kraftstoffkosten | E42: EUR/a | F42: =F28*F31 -> 16000 | G42: =G28*G31 -> 11000
C43: 07 | D43: sonstige variable Kosten | E43: EUR/a | F43: =F28*F32 -> 6000 | G43: =G28*G32 -> 4000
C44: 08 | D44: Variable Kosten gesamt | E44: EUR/a | F44: =F42+F43 -> 22000 | G44: =G42+G43 -> 15000
C45: 09 | D45: Gesamtkosten | E45: EUR/a | F45: =F41+F44 -> 28620 | G45: =G41+G44 -> 26380
C46: 10 | D46: Wertung | F46: =IF(F45<G45,"Besseres Angebot","") ->  | G46: =IF(G45<F45,"Besseres Angebot","") -> Besseres Angebot
C47: 11 | D47: Variable Kosten je km | E47: EUR/km | F47: =F31+F32 -> 0.44 | G47: =G31+G32 -> 0.3
E50: =G41-F41 -> 4760 | F50: Ergebnis
D51: Kritische Grenze x0 = | F51: =ROUND(E50/E52,0) -> 34000 | G51: km.
E52: =F47-G47 -> 0.14
C55: Kommentar:
C56: Bei Überschreiten der Jahres-km-Strecke von | E56: =F51 -> 34000 | F56: km lohnt es sich, das Fahrzeug nach
C57: =IF(F45>G45,"Angebot 2 zu wählen.","Angebot 1 zu wählen.") -> Angebot 2 zu wählen.

Sheet 02_Kostenvgl_Grafik (hidden)
C4: Investitionsrechnung
C6: 2. Statische Methoden der Investitionsrechnung
C8: 2.2 Kostenvergleichsrechnung: Grafik
E9: Kosten bei Grenzwert: | G9: ='02_Kostenvergleich_2L'!F41+'02_Kostenvergleich_2L'!F51*'02_Kostenvergleich_2L'!F47 -> 21580
C10: x [km] | D10: Kf, 1 | E10: Kv, 1 | F10: K1 | G10: Kf, 2 | H10: Kv, 2 | I10: K2
C11: 0 | D11: ='02_Kostenvergleich_2L'!$F$41 -> 6620 | E11: 0 | G11: ='02_Kostenvergleich_2L'!$G$41 -> 11380 | H11: 0
C12: =C11+5000 -> 5000 | D12: ='02_Kostenvergleich_2L'!$F$41 -> 6620 | E12: ='02_Kostenvergleich_2L'!$F$47*'02_Kostenvgl_Grafik'!C12 -> 2200 | F12: =D12+E12 -> 8820 | G12: ='02_Kostenvergleich_2L'!$G$41 -> 11380 | H12: ='02_Kostenvergleich_2L'!$G$47*C12 -> 1500 | I12: =G12+H12 -> 12880
C13: =C12+5000 -> 10000 | D13: ='02_Kostenvergleich_2L'!$F$41 -> 6620 | E13: ='02_Kostenvergleich_2L'!$F$47*'02_Kostenvgl_Grafik'!C13 -> 4400 | F13: =D13+E13 -> 11020 | G13: ='02_Kostenvergleich_2L'!$G$41 -> 11380 | H13: ='02_Kostenvergleich_2L'!$G$47*C13 -> 3000 | I13: =G13+H13 -> 14380
C14: 15000 | D14: ='02_Kostenvergleich_2L'!$F$41 -> 6620 | E14: ='02_Kostenvergleich_2L'!$F$47*'02_Kostenvgl_Grafik'!C14 -> 6600 | F14: 13220 | G14: ='02_Kostenvergleich_2L'!$G$41 -> 11380 | H14: ='02_Kostenvergleich_2L'!$G$47*C14 -> 4500 | I14: =G14+H14 -> 15880
C15: 20000 | D15: ='02_Kostenvergleich_2L'!$F$41 -> 6620 | E15: ='02_Kostenvergleich_2L'!$F$47*'02_Kostenvgl_Grafik'!C15 -> 8800 | F15: 15420 | G15: ='02_Kostenvergleich_2L'!$G$41 -> 11380 | H15: ='02_Kostenvergleich_2L'!$G$47*C15 -> 6000 | I15: 17380
C16: 25000 | D16: ='02_Kostenvergleich_2L'!$F$41 -> 6620 | E16: ='02_Kostenvergleich_2L'!$F$47*'02_Kostenvgl_Grafik'!C16 -> 11000 | F16: 17620 | G16: ='02_Kostenvergleich_2L'!$G$41 -> 11380 | H16: ='02_Kostenvergleich_2L'!$G$47*C16 -> 7500 | I16: 18880
C17: 30000 | D17: ='02_Kostenvergleich_2L'!$F$41 -> 6620 | E17: ='02_Kostenvergleich_2L'!$F$47*'02_Kostenvgl_Grafik'!C17 -> 13200 | F17: 19820 | G17: ='02_Kostenvergleich_2L'!$G$41 -> 11380 | H17: ='02_Kostenvergleich_2L'!$G$47*C17 -> 9000 | I17: 20380
C18: 35000 | D18: ='02_Kostenvergleich_2L'!$F$41 -> 6620 | E18: ='02_Kostenvergleich_2L'!$F$47*'02_Kostenvgl_Grafik'!C18 -> 15400 | F18: 22020 | G18: ='02_Kostenvergleich_2L'!$G$41 -> 11380 | H18: ='02_Kostenvergleich_2L'!$G$47*C18 -> 10500 | I18: 21880
C19: 40000 | D19: ='02_Kostenvergleich_2L'!$F$41 -> 6620 | E19: ='02_Kostenvergleich_2L'!$F$47*'02_Kostenvgl_Grafik'!C19 -> 17600 | F19: 24220 | G19: ='02_Kostenvergleich_2L'!$G$41 -> 11380 | H19: ='02_Kostenvergleich_2L'!$G$47*C19 -> 12000 | I19: 23380
C20: 45000 | D20: ='02_Kostenvergleich_2L'!$F$41 -> 6620 | E20: ='02_Kostenvergleich_2L'!$F$47*'02_Kostenvgl_Grafik'!C20 -> 19800 | F20: 26420 | G20: ='02_Kostenvergleich_2L'!$G$41 -> 11380 | H20: ='02_Kostenvergleich_2L'!$G$47*C20 -> 13500 | I20: 24880
C21: 50000 | D21: ='02_Kostenvergleich_2L'!$F$41 -> 6620 | E21: ='02_Kostenvergleich_2L'!$F$47*'02_Kostenvgl_Grafik'!C21 -> 22000 | F21: 28620 | G21: ='02_Kostenvergleich_2L'!$G$41 -> 11380 | H21: ='02_Kostenvergleich_2L'!$G$47*C21 -> 15000 | I21: 26380
C22: 55000 | D22: ='02_Kostenvergleich_2L'!$F$41 -> 6620 | E22: ='02_Kostenvergleich_2L'!$F$47*'02_Kostenvgl_Grafik'!C22 -> 24200 | F22: 30820 | G22: ='02_Kostenvergleich_2L'!$G$41 -> 11380 | H22: ='02_Kostenvergleich_2L'!$G$47*C22 -> 16500 | I22: 27880
C23: 60000 | D23: ='02_Kostenvergleich_2L'!$F$41 -> 6620 | E23: ='02_Kostenvergleich_2L'!$F$47*'02_Kostenvgl_Grafik'!C23 -> 26400 | F23: 33020 | G23: ='02_Kostenvergleich_2L'!$G$41 -> 11380 | H23: ='02_Kostenvergleich_2L'!$G$47*C23 -> 18000 | I23: 29380
C24: 65000 | D24: ='02_Kostenvergleich_2L'!$F$41 -> 6620 | E24: ='02_Kostenvergleich_2L'!$F$47*'02_Kostenvgl_Grafik'!C24 -> 28600 | F24: 35220 | G24: ='02_Kostenvergleich_2L'!$G$41 -> 11380 | H24: ='02_Kostenvergleich_2L'!$G$47*C24 -> 19500 | I24: 30880
C25: 70000 | D25: ='02_Kostenvergleich_2L'!$F$41 -> 6620 | E25: ='02_Kostenvergleich_2L'!$F$47*'02_Kostenvgl_Grafik'!C25 -> 30800 | F25: 37420 | G25: ='02_Kostenvergleich_2L'!$G$41 -> 11380 | H25: ='02_Kostenvergleich_2L'!$G$47*C25 -> 21000 | I25: 32380

Sheet 03_Gewinnvergleich_1
C4: Investitionsrechnung
C6: 2. Statische Methoden der Investitionsrechnung
C8: 2.3 Gewinnvergleichsrechnung: Grundlagen
C9: Die Gewinnvergleichsrechnung ist eine Methode der statischen Investitionsrechnung, die darauf abzielt, die Vorteil-
C10: haftigkeit einer Investition Vergleich des Jahresgewinns (= Erlöse ./. Kosten) der jeweiligen Investitionsalternativen
C11: zu ermitteln.
C12: Die Gewinnvergleichsrechnung stellt eine Erweiterung der Kostenvergleichsrechnung dar, denn in die Bewertung
C13: der Vorteilhaftigkeit einer Investitionsalternative gehen nicht nur die Kosten, sondern auch die Erlöse und damit
C14: der erzielbare Gewinn aus der Nutzung des jeweiligen Investitionsobjekts ein.
C15: Die Anwendung der Gewinnvergleichsrechnung ist der Methode der Kostenvergleichsrechnung dann vorzuziehen,
C16: wenn beabsichtigt ist, mit der Realisierung des betreffenden Investitionsvorhabens ein bestimmtes Produkt herzu-
C17: stellen oder eine Dienstleistung anzubieten, wofür externe Kunden einen Preis P [EUR/ME] bezahlen sollen.
C18: Der Erlös E [EUR] ist dann aus der Multiplikation der geplanten Leistungsmenge q [ME] und dem Preis P [EUR/ME] zu
C19: ermitteln:
C20: Den Erlösen E werden die anfallenden Kosten K gegenüber gestellt und ein Gewinn G ermittelt: | R20: G = E - K | S20: [EUR].
D22: Investitionsalternative 1 | L22: Investitionsalternative 2 (gewinnergiebiger)
E24: Erlöse E1 | I24: Gewinn G1 | M24: Erlöse E2 | Q24: Gewinn G2
G26: Kv,1
O27: Kv,2
O28: Kf,2
G29: Kf,1
C34: Als fixe Kosten werden wiederum all jene Kostenarten einbezogen, die bereits bei der Kostenvergleichsrechnung
C35: aufgeführt wurden.
C36: Gleiches gilt auch für die einzubeziehenden Positionen der variablen Kosten.
C37: Wie bei der Kostenvergleichsrechnung ist des Weiteren die kritische Auslastung (Symbol x0 [ME]) zu berechnen.
C39: Berechnungsformel, Fallbeispiel: Siehe Folgeblatt!

Sheet 03_Gewinnvergleich_2A
C4: Investitionsrechnung
C6: 2. Statische Methoden der Investitionsrechnung
C8: 2.4 Gewinnvergleichsrechnung: Formeln, Fallbeispiel
C9: a) Ermittlung der kritischen Auslastung (Symbol x0 [ME]):
C10: Wird für die Vergleichsvarianten ein gleicher Verkaufspreis P zugrunde gelegt, dann kann die kritische Auslastung
C11: nach der Formel ermittelt werden, die bereits bei der Kostenvergleichsrechnung benannt wurde:
F13: (2.3) | G13: Dies gilt für den Fall Kf, 2 > Kf, 1
C16: b) Fallbeispiel FB2
C17: Der Gründer Max Muster plant zur Erweiterung des Service-Angebots seines neuen Unternehmens die
C18: Anschaffung einer Pkw-Waschanlage (speziell für E-Autos).
C19: Geplante Durchsatzleistung der Anlage: | E19: 6000 | F19: (Anzahl Pkw's [ME/a]),
C20: Geplanter Durchschnittspreis für die Nutzung der Anlage: | F20: 10 | G20: [EUR/Pkw].
C22: Folgende zwei Angebote mit den nachstehend aufgeführten Daten kommen in die engere Auswahl:
C24: Nr. | D24: Angabe | E24: Maßeinheit | F24: Angebot 1 | G24: Angebot 2
C25: 1 | D25: Anschaffungskosten | E25: EUR | F25: 29400 | G25: 44600
C26: =C25+1 -> 2 | D26: Restwert | E26: EUR | F26: 600 | G26: 3500
C27: =C26+1 -> 3 | D27: Nutzungsdauer | E27: Jahre [a] | F27: 6 | G27: 6
C28: 4 | D28: Durchsatzleistung | E28: ME/a | F28: =E19 -> 6000 | G28: =F28 -> 6000
C29: 5 | D29: Kalkulatorischer Zinssatz | E29: % p .a. | F29: 6 | G29: =F29 -> 6
C30: 6 | D30: Sonstige fixe Kosten | E30: EUR/a | F30: 600 | G30: 3000
C31: 7 | D31: variable Personalkosten | E31: EUR/ME | F31: 4 | G31: 3.6
C32: 8 | D32: variable Energiekosten (Strom, Wasser) | E32: EUR/ME | F32: 3.2 | G32: 3
C33: 9 | D33: sonstige variable Kosten | E33: EUR/ME | F33: 0.9 | G33: 0.55
C35: Aufgabe: Ermitteln Sie durch Gewinnvergleich, welches der beiden Angebote zur Realisierung vorzuschlagen ist!
C36: Des Weiteren ist die kritische Grenze x0 zu berechnen!
C38: Berechnungstabelle
C39: 01 | D39: kalkulatorische Abschreibungen | E39: EUR/a
C40: 02 | D40: kalkulatorische Zinsen | E40: EUR/a
C41: 03 | D41: sonstige fixe Kosten | E41: EUR/a
C42: 04 | D42: Fixe Kosten gesamt | E42: EUR/a
C43: 05 | D43: variable Personalkosten | E43: EUR/a
C44: 06 | D44: variable Energiekosten (Strom, Wasser) | E44: EUR/a
C45: 07 | D45: sonstige variable Kosten | E45: EUR/a
C46: 08 | D46: Variable Kosten gesamt | E46: EUR/a
C47: 09 | D47: Gesamtkosten | E47: EUR/a
C48: 10 | D48: Erlöse gesamt | E48: EUR/a
C49: 11 | D49: Gewinn gesamt | E49: EUR/a
C50: 12 | D50: Wertung
C51: 13 | D51: Variable Kosten je ME | E51: EUR/ME
F54: Ergebnis
D55: Kritische Grenze x0 = | G55: ME
C59: Kommentar:

Sheet 03_Gewinnvergleich_2L (hidden)
C4: Investitionsrechnung
C6: 2. Statische Methoden der Investitionsrechnung
C8: 2.4 Gewinnvergleichsrechnung: Formeln, Fallbeispiel
C9: a) Ermittlung der kritischen Auslastung (Symbol x0 [ME]):
C10: Wird für die Vergleichsvarianten ein gleicher Verkaufspreis P zugrunde gelegt, dann kann die kritische Auslastung
C11: nach der Formel ermittelt werden, die bereits bei der Kostenvergleichsrechnung benannt wurde:
F13: (2.3) | G13: Dies gilt für den Fall Kf, 2 > Kf, 1
C16: b) Fallbeispiel FB2
C17: Der Gründer Max Muster plant zur Erweiterung des Service-Angebots seines neuen Unternehmens die
C18: Anschaffung einer Pkw-Waschanlage (speziell für E-Autos).
C19: Geplante Durchsatzleistung der Anlage: | E19: 6000 | F19: (Anzahl Pkw's [ME/a]),
C20: Geplanter Durchschnittspreis für die Nutzung der Anlage: | F20: 10 | G20: [EUR/Pkw].
C22: Folgende zwei Angebote mit den nachstehend aufgeführten Daten kommen in die engere Auswahl:
C24: Nr. | D24: Angabe | E24: Maßeinheit | F24: Angebot 1 | G24: Angebot 2
C25: 1 | D25: Anschaffungskosten | E25: EUR | F25: 29400 | G25: 44600
C26: =C25+1 -> 2 | D26: Restwert | E26: EUR | F26: 600 | G26: 3500
C27: =C26+1 -> 3 | D27: Nutzungsdauer | E27: Jahre [a] | F27: 6 | G27: 6
C28: 4 | D28: Durchsatzleistung | E28: ME/a | F28: =E19 -> 6000 | G28: =F28 -> 6000
C29: 5 | D29: Kalkulatorischer Zinssatz | E29: % p .a. | F29: =H29/10 -> 6 | G29: =F29 -> 6 | H29: 60
C30: 6 | D30: Sonstige fixe Kosten | E30: EUR/a | F30: 600 | G30: 3000
C31: 7 | D31: variable Personalkosten | E31: EUR/ME | F31: =H31/10 -> 4 | G31: =I31/10 -> 3.6 | H31: 40 | I31: 36
C32: 8 | D32: variable Energiekosten (Strom, Wasser) | E32: EUR/ME | F32: =H32/10 -> 3.2 | G32: =I32/10 -> 3 | H32: 32 | I32: 30
C33: 9 | D33: sonstige variable Kosten | E33: EUR/ME | F33: =H33/100 -> 0.9 | G33: =I33/100 -> 0.55 | H33: 90 | I33: 55
C35: Aufgabe: Ermitteln Sie durch Gewinnvergleich, welches der beiden Angebote zur Realisierung vorzuschlagen ist!
C36: Des Weiteren ist die kritische Grenze x0 zu berechnen!
C38: Berechnungstabelle
C39: 02 | D39: kalkulatorische Abschreibungen | E39: EUR/a | F39: =(F25-F26)/F27 -> 4800 | G39: =(G25-G26)/G27 -> 6850
C40: 03 | D40: kalkulatorische Zinsen | E40: EUR/a | F40: =(F25+F26)/2*F29/100 -> 900 | G40: =(G25+G26)/2*G29/100 -> 1443
C41: 04 | D41: sonstige fixe Kosten | E41: EUR/a | F41: =F30 -> 600 | G41: =G30 -> 3000
C42: 05 | D42: Fixe Kosten gesamt | E42: EUR/a | F42: =SUM(F39:F41) -> 6300 | G42: =SUM(G39:G41) -> 11293
C43: 06 | D43: variable Personalkosten | E43: EUR/a | F43: =F31*F28 -> 24000 | G43: =G31*G28 -> 21600
C44: 07 | D44: variable Energiekosten (Strom, Wasser) | E44: EUR/a | F44: =F32*F28 -> 19200 | G44: =G32*G28 -> 18000
C45: 08 | D45: sonstige variable Kosten | E45: EUR/a | F45: =F33*F28 -> 5400 | G45: =G33*G28 -> 3300
C46: 08 | D46: Variable Kosten gesamt | E46: EUR/a | F46: =SUM(F43:F45) -> 48600 | G46: =SUM(G43:G45) -> 42900
C47: 09 | D47: Gesamtkosten | E47: EUR/a | F47: =F42+F46 -> 54900 | G47: =G42+G46 -> 54193
C48: 10 | D48: Erlöse gesamt | E48: EUR/a | F48: =E19*F20 -> 60000 | G48: =E19*F20 -> 60000
C49: 11 | D49: Gewinn gesamt | E49: EUR/a | F49: =F48-F47 -> 5100 | G49: =G48-G47 -> 5807
C50: 12 | D50: Wertung | F50: =IF(F49>G49,"Angebot 1 besser!","") ->  | G50: =IF(G49>F49,"Angebot 2 besser!","") -> Angebot 2 besser!
C51: 13 | D51: Variable Kosten je ME | E51: EUR/ME | F51: =F31+F32+F33 -> 8.1 | G51: =G31+G32+G33 -> 7.15
E54: =G42-F42 -> 4993 | F54: Ergebnis
D55: Kritische Grenze x0 = | F55: =ROUND(FixKo2/VarKo2,0) -> 5256 | G55: ME
E56: =F51-G51 -> 0.95
C59: Kommentar:
C60: Bei Überschreiten der Jahres-Auslastung von | E60: =F55 -> 5256 | F60: Pkw lohnt es sich, die Anlage nach
C61: Angebot 2 zu erwerben.

Sheet 03_Gewinnvgl_Grafik (hidden)
C4: Investitionsrechnung
C6: 2. Statische Methoden der Investitionsrechnung
C8: 2.3 Gewinnvergleichsrechnung: Grafik
E10: Presi P [EUR/ME] | G10: ='03_Gewinnvergleich_2L'!F20 -> 10 | I10: Grenzwert x0 = | J10: ='03_Gewinnvergleich_2L'!F55 -> 5256 | K10: [ME]
C11: x [ME] | D11: Kf, 1 | E11: Kv, 1 | F11: K1 | G11: Kf, 2 | H11: Kv, 2 | I11: K2 | J11: Erlöse E | K11: Gew. G1 | L11: Gew. G2
C12: 0 | D12: ='03_Gewinnvergleich_2L'!$F$42 -> 6300 | E12: ='03_Gewinnvergleich_2L'!$F$51*C12 -> 0 | F12: =D12+E12 -> 6300 | G12: ='03_Gewinnvergleich_2L'!$G$42 -> 11293 | H12: ='03_Gewinnvergleich_2L'!$G$51*C12 -> 0 | I12: =G12+H12 -> 11293 | J12: =$G$10*C12 -> 0 | K12: =J12-F12 -> -6300 | L12: =J12-I12 -> -11293
C13: =C12+500 -> 500 | D13: ='03_Gewinnvergleich_2L'!$F$42 -> 6300 | E13: ='03_Gewinnvergleich_2L'!$F$51*C13 -> 4050 | F13: =D13+E13 -> 10350 | G13: ='03_Gewinnvergleich_2L'!$G$42 -> 11293 | H13: ='03_Gewinnvergleich_2L'!$G$51*C13 -> 3575 | I13: =G13+H13 -> 14868 | J13: =$G$10*C13 -> 5000 | K13: =J13-F13 -> -5350 | L13: =J13-I13 -> -9868
C14: =C13+500 -> 1000 | D14: ='03_Gewinnvergleich_2L'!$F$42 -> 6300 | E14: ='03_Gewinnvergleich_2L'!$F$51*C14 -> 8100 | F14: 14400 | G14: ='03_Gewinnvergleich_2L'!$G$42 -> 11293 | H14: ='03_Gewinnvergleich_2L'!$G$51*C14 -> 7150 | I14: 18443 | J14: 10000 | K14: -4400 | L14: -8443
C15: 1500 | D15: ='03_Gewinnvergleich_2L'!$F$42 -> 6300 | E15: ='03_Gewinnvergleich_2L'!$F$51*C15 -> 12150 | F15: 18450 | G15: ='03_Gewinnvergleich_2L'!$G$42 -> 11293 | H15: ='03_Gewinnvergleich_2L'!$G$51*C15 -> 10725 | I15: 22018 | J15: 15000 | K15: -3450 | L15: -7018
C16: 2000 | D16: ='03_Gewinnvergleich_2L'!$F$42 -> 6300 | E16: ='03_Gewinnvergleich_2L'!$F$51*C16 -> 16200 | F16: 22500 | G16: ='03_Gewinnvergleich_2L'!$G$42 -> 11293 | H16: ='03_Gewinnvergleich_2L'!$G$51*C16 -> 14300 | I16: 25593 | J16: 20000 | K16: -2500 | L16: -5593
C17: 2500 | D17: ='03_Gewinnvergleich_2L'!$F$42 -> 6300 | E17: ='03_Gewinnvergleich_2L'!$F$51*C17 -> 20250 | F17: 26550 | G17: ='03_Gewinnvergleich_2L'!$G$42 -> 11293 | H17: ='03_Gewinnvergleich_2L'!$G$51*C17 -> 17875 | I17: 29168 | J17: 25000 | K17: -1550 | L17: -4168
C18: 3000 | D18: ='03_Gewinnvergleich_2L'!$F$42 -> 6300 | E18: ='03_Gewinnvergleich_2L'!$F$51*C18 -> 24300 | F18: =D18+E18 -> 30600 | G18: ='03_Gewinnvergleich_2L'!$G$42 -> 11293 | H18: ='03_Gewinnvergleich_2L'!$G$51*C18 -> 21450 | I18: =G18+H18 -> 32743 | J18: =$G$10*C18 -> 30000 | K18: =J18-F18 -> -600 | L18: =J18-I18 -> -2743
C19: 3500 | D19: ='03_Gewinnvergleich_2L'!$F$42 -> 6300 | E19: ='03_Gewinnvergleich_2L'!$F$51*C19 -> 28350 | F19: 34650 | G19: ='03_Gewinnvergleich_2L'!$G$42 -> 11293 | H19: ='03_Gewinnvergleich_2L'!$G$51*C19 -> 25025 | I19: 36318 | J19: 35000 | K19: 350 | L19: -1318
C20: 4000 | D20: ='03_Gewinnvergleich_2L'!$F$42 -> 6300 | E20: ='03_Gewinnvergleich_2L'!$F$51*C20 -> 32400 | F20: 38700 | G20: ='03_Gewinnvergleich_2L'!$G$42 -> 11293 | H20: ='03_Gewinnvergleich_2L'!$G$51*C20 -> 28600 | I20: 39893 | J20: 40000 | K20: 1300 | L20: 107
C21: 4500 | D21: ='03_Gewinnvergleich_2L'!$F$42 -> 6300 | E21: ='03_Gewinnvergleich_2L'!$F$51*C21 -> 36450 | F21: =D21+E21 -> 42750 | G21: ='03_Gewinnvergleich_2L'!$G$42 -> 11293 | H21: ='03_Gewinnvergleich_2L'!$G$51*C21 -> 32175 | I21: =G21+H21 -> 43468 | J21: =$G$10*C21 -> 45000 | K21: =J21-F21 -> 2250 | L21: =J21-I21 -> 1532
C22: 5000 | D22: ='03_Gewinnvergleich_2L'!$F$42 -> 6300 | E22: ='03_Gewinnvergleich_2L'!$F$51*C22 -> 40500 | F22: =D22+E22 -> 46800 | G22: ='03_Gewinnvergleich_2L'!$G$42 -> 11293 | H22: ='03_Gewinnvergleich_2L'!$G$51*C22 -> 35750 | I22: =G22+H22 -> 47043 | J22: =$G$10*C22 -> 50000 | K22: =J22-F22 -> 3200 | L22: =J22-I22 -> 2957
C23: 5500 | D23: ='03_Gewinnvergleich_2L'!$F$42 -> 6300 | E23: ='03_Gewinnvergleich_2L'!$F$51*C23 -> 44550 | F23: 50850 | G23: ='03_Gewinnvergleich_2L'!$G$42 -> 11293 | H23: ='03_Gewinnvergleich_2L'!$G$51*C23 -> 39325 | I23: 50618 | J23: 55000 | K23: 4150 | L23: 4382

Sheet 04_Rentabelvergleich_1
C4: Investitionsrechnung
C6: 2. Statische Methoden der Investitionsrechnung
C8: 2.5 Rentabilitätsvergleichsrechnung: Grundlagen, Formel
C9: Die Rentabilitätsvergleichsrechnung ist eine Methode der statischen Investitionsrechnung, die darauf abzielt,
C10: die durchschnittliche jährliche Verzinsung des in Verbindung mit der Investition eingesetzten Kapitals als
C11: als Ausdruck der Rentabilität eines Vorhabens zu ermitteln.
C12: Berechnungsformel:
N14: (2.4)
C16: Es bedeuten:
D17: r = | E17: Rentabilität eines Investitionsobjekt [% p. a.]
D18: E = | E18: Erlöse aus der Nutzung des Investitionsobjekt [EUR/a]
D19: K = | E19: Kosten der Nutzung des Investitionsobjekts [EUR/a]
D20: dKE = | E20: durchschnittlicher Kapitaleinsatz [EUR] | K20: Berechnung: | M20: dKE = (Anschaffungskosten + Restwert) /2
C21: Der Erlös E [EUR] ist dann aus der Multiplikation der geplanten Leistungsmenge q [ME] und dem Preis P [EUR/ME]
C22: zu ermitteln: | E22: E = P * q | F22: [EUR/a].
C23: In die Kosten K gehen die kalkulatorischen Aschreibungen, die sonstigen fixen Kosten und die variablen Kosten aus der
C24: Nutzung des Investitionsobjekts ein. Nicht einzurechnen sind jedoch hier die kalkulatorischen Zinsen!
C25: Dadurch soll sicher gestellt werden, dass die Rentabilität des Vorhabens nicht von der Art der Finanzierung (mit Eigen-
C26: bzw. mit Fremdkapital) abhängt.
C27: Wurde in den Zähler der obigen Formel der Gewinn G (mit G = E - K) eingesetzt, so ist in der Größe G der Betrag der
C28: eingerechneten kalkulatorischen Zinsen Z wieder hinzu zu addieren!
C29: Der sachliche Grund für die Anwendung der Rentabilitätsvergleichsrechnung - anstelle der Gewinnvergleichsrechnung -
C30: ist darin zu sehen, dass es offensichtlich einen Unterschied ausmacht, ob ein erzielter Gewinn G - in seinem Absolutbetrag -
C31: mit einem relativ hohen bzw. mit einem relativ niedrigen (durchschnittlichen) Kapitaleinsatz erzielt wird (siehe Grafik).
C33: Investitionsalternative 1 (bessere Rentabilität) | K33: Investitionsalternative 2
D35: dKE | H35: Gewinn G1
F37: Kv,1 | L37: dKE | P37: Gewinn G2
N39: Kv, 2
F40: Kf,1
N41: Kf, 2
C45: Fallbeispiel: Siehe Folgeblatt!

Sheet 04_Rentabelvergleich_2A
C4: Investitionsrechnung
C6: 2. Statische Methoden der Investitionsrechnung
C8: 2.6 Rentabilitätsvergleichsrechnung: Fallbeispiel
C9: a) Ermittlung der kritischen Auslastung (Symbol x0 [ME]):
C10: Wie bei der Kosten- bzw. Gewinnvergleichsrechnung kann eine kritische Auslastung (Symbol x0 [ME]) nach der
C11: bereits bekannten Formel ermittelt werden:
F13: (2.5) | G13: Dies gilt für den Fall Kf, 2 > Kf, 1
C16: b) Fallbeispiel FB3 = FB2
C17: Es wird das gleiche Fallbeispiel wie bei der Gewinnvergleichsrechnung behandelt.
C18: Der Gründer Max Muster plant zur Erweiterung des Service-Angebots seines neuen Unternehmens die
C19: Anschaffung einer Pkw-Waschanlage (speziell für E-Autos).
C20: Geplante Durchsatzleistung der Anlage: | E20: 6000 | F20: (Anzahl Pkw's [ME/a]),
C21: Geplanter Durchschnittspreis für die Nutzung der Anlage: | F21: 10 | G21: [EUR/Pkw].
C23: Folgende zwei Angebote mit den nachstehend aufgeführten Daten kommen in die engere Auswahl:
C25: Nr. | D25: Angabe | E25: Maßeinheit | F25: Angebot 1 | G25: Angebot 2
C26: 1 | D26: Anschaffungskosten | E26: EUR | F26: 29400 | G26: 44600
C27: =C26+1 -> 2 | D27: Restwert | E27: EUR | F27: 600 | G27: 3500
C28: =C27+1 -> 3 | D28: Nutzungsdauer | E28: Jahre [a] | F28: 6 | G28: 6
C29: 4 | D29: Durchsatzleistung | E29: ME/a | F29: =E20 -> 6000 | G29: =F29 -> 6000
C30: 5 | D30: Kalkulatorischer Zinssatz | E30: % p .a. | F30: 6 | G30: =F30 -> 6
C31: 6 | D31: Sonstige fixe Kosten | E31: EUR/a | F31: 600 | G31: 3000
C32: 7 | D32: variable Personalkosten | E32: EUR/ME | F32: 4 | G32: 3.6
C33: 8 | D33: variable Energiekosten (Strom, Wasser) | E33: EUR/ME | F33: 3.2 | G33: 3
C34: 9 | D34: sonstige variable Kosten | E34: EUR/ME | F34: 0.9 | G34: 0.55
C36: Aufgabe: Ermitteln Sie durch Rentabilitätsvergleich, welches der beiden Angebote zur Realisierung vorzuschlagen ist!
C37: Des Weiteren ist die kritische Grenze x0 zu berechnen!
C39: Berechnungstabelle
C40: 01 | D40: durchschnittlicher Kapitaleinsatz | E40: EUR/a
C41: 02 | D41: kalkulatorische Abschreibungen | E41: EUR/a
C42: 03 | D42: kalkulatorische Zinsen | E42: EUR/a
C43: 04 | D43: sonstige fixe Kosten | E43: EUR/a
C44: 05 | D44: Fixe Kosten gesamt | E44: EUR/a
C45: 06 | D45: variable Personalkosten | E45: EUR/a
C46: 07 | D46: variable Energiekosten (Strom, Wasser) | E46: EUR/a
C47: 08 | D47: sonstige variable Kosten | E47: EUR/a
C48: 09 | D48: Variable Kosten gesamt | E48: EUR/a
C49: 10 | D49: Gesamtkosten | E49: EUR/a
C50: 11 | D50: Erlöse gesamt | E50: EUR/a
C51: 12 | D51: (Erlöse ./. Kosten) + kalkulat. Zinsen | E51: EUR/a
C52: 13 | D52: Rentabilität r | E52: % p. a.
C53: 14 | D53: Wertung
C54: 15 | D54: Variable Kosten je ME | E54: EUR/ME
F57: Ergebnis
D58: Kritische Grenze x0 = | G58: ME
C62: Kommentar:

Sheet 04_Rentabelvergleich_2L (hidden)
C4: Investitionsrechnung
C6: 2. Statische Methoden der Investitionsrechnung
C8: 2.6 Rentabilitätsvergleichsrechnung: Fallbeispiel
C9: a) Ermittlung der kritischen Auslastung (Symbol x0 [ME]):
C10: Wie bei der Kosten- bzw. Gewinnvergleichsrechnung kann eine kritische Auslastung (Symbol x0 [ME]) nach der
C11: bereits bekannten Formel ermittelt werden:
F13: (2.5) | G13: Dies gilt für den Fall Kf, 2 > Kf, 1
C16: b) Fallbeispiel FB3 = FB2
C17: Es wird das gleiche Fallbeispiel wie bei der Gewinnvergleichsrechnung behandelt.
C18: Der Gründer Max Muster plant zur Erweiterung des Service-Angebots seines neuen Unternehmens die
C19: Anschaffung einer Pkw-Waschanlage (speziell für E-Autos).
C20: Geplante Durchsatzleistung der Anlage: | E20: 6000 | F20: (Anzahl Pkw's [ME/a]),
C21: Geplanter Durchschnittspreis für die Nutzung der Anlage: | F21: 10 | G21: [EUR/Pkw].
C23: Folgende zwei Angebote mit den nachstehend aufgeführten Daten kommen in die engere Auswahl:
C25: Nr. | D25: Angabe | E25: Maßeinheit | F25: Angebot 1 | G25: Angebot 2
C26: 1 | D26: Anschaffungskosten | E26: EUR | F26: 29400 | G26: 44600
C27: =C26+1 -> 2 | D27: Restwert | E27: EUR | F27: 600 | G27: 3500
C28: =C27+1 -> 3 | D28: Nutzungsdauer | E28: Jahre [a] | F28: 6 | G28: 6
C29: 4 | D29: Durchsatzleistung | E29: ME/a | F29: =E20 -> 6000 | G29: =F29 -> 6000
C30: 5 | D30: Kalkulatorischer Zinssatz | E30: % p .a. | F30: 6 | G30: =F30 -> 6
C31: 6 | D31: Sonstige fixe Kosten | E31: EUR/a | F31: 600 | G31: 3000
C32: 7 | D32: variable Personalkosten | E32: EUR/ME | F32: 4 | G32: 3.6
C33: 8 | D33: variable Energiekosten (Strom, Wasser) | E33: EUR/ME | F33: 3.2 | G33: 3
C34: 9 | D34: sonstige variable Kosten | E34: EUR/ME | F34: 0.9 | G34: 0.55
C36: Aufgabe: Ermitteln Sie durch Rentabilitätsvergleich, welches der beiden Angebote zur Realisierung vorzuschlagen ist!
C37: Des Weiteren ist die kritische Grenze x0 zu berechnen!
C39: Berechnungstabelle
C40: 01 | D40: durchschnittlicher Kapitaleinsatz | E40: EUR/a | F40: =(F26+F27)/2 -> 15000 | G40: =(G26+G27)/2 -> 24050
C41: 02 | D41: kalkulatorische Abschreibungen | E41: EUR/a | F41: =(F26-F27)/F28 -> 4800 | G41: =(G26-G27)/G28 -> 6850
C42: 03 | D42: kalkulatorische Zinsen | E42: EUR/a | F42: =(F26+F27)/2*F30/100 -> 900 | G42: =(G26+G27)/2*G30/100 -> 1443
C43: 04 | D43: sonstige fixe Kosten | E43: EUR/a | F43: =F31 -> 600 | G43: =G31 -> 3000
C44: 05 | D44: Fixe Kosten gesamt | E44: EUR/a | F44: =SUM(F41:F43) -> 6300 | G44: =SUM(G41:G43) -> 11293
C45: 06 | D45: variable Personalkosten | E45: EUR/a | F45: =F32*F29 -> 24000 | G45: =G32*G29 -> 21600
C46: 07 | D46: variable Energiekosten (Strom, Wasser) | E46: EUR/a | F46: =F33*F29 -> 19200 | G46: =G33*G29 -> 18000
C47: 08 | D47: sonstige variable Kosten | E47: EUR/a | F47: =F34*F29 -> 5400 | G47: =G34*G29 -> 3300
C48: 09 | D48: Variable Kosten gesamt | E48: EUR/a | F48: =SUM(F45:F47) -> 48600 | G48: =SUM(G45:G47) -> 42900
C49: 10 | D49: Gesamtkosten | E49: EUR/a | F49: =F44+F48 -> 54900 | G49: =G44+G48 -> 54193
C50: 11 | D50: Erlöse gesamt | E50: EUR/a | F50: =E20*F21 -> 60000 | G50: =E20*F21 -> 60000
C51: 12 | D51: (Erlöse ./. Kosten) + kalkulat. Zinsen | E51: EUR/a | F51: =(F50-F49)+F42 -> 6000 | G51: =(G50-G49)+G42 -> 7250
C52: 13 | D52: Rentabilität r | E52: % p. a. | F52: =F51*100/F40 -> 40 | G52: =G51*100/G40 -> 30.14553015
C53: 14 | D53: Wertung | F53: =IF(F51>G51,"Angebot 1 besser!","") ->  | G53: =IF(G51>F51,"Angebot 2 besser!","") -> Angebot 2 besser!
C54: 15 | D54: Variable Kosten je ME | E54: EUR/ME | F54: =F32+F33+F34 -> 8.1 | G54: =G32+G33+G34 -> 7.15
E57: =G44-F44 -> 4993 | F57: Ergebnis
D58: Kritische Grenze x0 = | F58: =ROUND(FixKo2/VarKo2,0) -> 5256 | G58: ME
E59: =F54-G54 -> 0.95
C62: Kommentar:
C63: Bei Überschreiten der Jahres-Auslastung von | E63: =F58 -> 5256 | F63: Pkw lohnt es sich, die Anlage nach
C64: Angebot 2 zu erwerben.

Sheet 05_Amortisation_1
C4: Investitionsrechnung
C6: 2. Statische Methoden der Investitionsrechnung
C8: 2.7 Amortisationsvergleichsrechnung: Grundlagen, Formel
C9: Die Amortisationsrechnung ist ein Verfahren der statischen Investitionsrechnung. Bei diesem Vorgehen wird ermittelt,
C10: nach wie viel Jahren die Summe der Kapitalrückflüsse aus Gewinnen und Abschreibungen so hoch ist, dass sie die Größe
C11: des ursprünglichen Kapitaleinsatzes übersteigt..
C12: Die Bestimmung dieser Amortisationszeit tAm geht von folgender Beziehung aus:
C13: Es bedeuten: | U13: (2.6)
D14: tAM | E14: Amortisationszeit [a],
D15: C0 | E15: Kapitaleinsatz beim betreffenden Vorhaben [EUR]
D16: Rn | E16: Restwert des Investitionsobjekts am Ende der Nutzungsdauer [EUR],
D17: dG | E17: durchschnittlicher jährlicher Gewinn aus der Nutzung des Investitionsobjekts [EUR/a],
D18: dQ | E18: durchschnittliche jährliche Abschreibungen zum Investitionsobjekt [EUR/a].
C20: Die Investition lohnt sich dann, wenn die so ermittelte Amortisationszeit tAm einen Vorgabewert tSoll [a] (z. B. tSoll = 3 Jahre)
C21: nicht überschreitet.
C22: Auf diese Weise soll statistische Charakter der bisher behandelten Methoden der Investitionsrechnung (mit Bezug der
C23: Daten auf nur ein einziges Geschäftsjahr) ein wenig überwunden werden.
C25: Investitionsalternative 1 | M25: Investitionsalternative 2 (bessere Amortisationszeit)
N27: C0 | P27: [(G1 + Q1) + … (Gn + Qn)]
D28: C0 | Q28: n
F29: [(G1 + Q1) + … (Gn + Qn)]
H30: n
T32: Gn
J33: Gn | P33: G1
F34: G1 | G34: … | N34: Rn | P34: Q1 | Q34: … | T34: Qn
D35: Rn | F35: Q1 | J35: Qn
C37: Probleme bei der Anwendung dieser Methode gibt es vor allem wegen den Schwierigkeiten bei der Zurechenbarkeit von
C38: Aufwendungen und Erträgen zum Investitionsobjekt. Des Weiteren wird eine Abzinsung von Aufwendungen und Erträgen u. a.
C39: nicht berücksichtigt.
C40: Fallbeispiel: Siehe Folgeblatt!

Sheet 05_Amortisation_2A
C4: Investitionsrechnung
C6: 2. Statische Methoden der Investitionsrechnung
C8: 2.7 Amortisationsvergleichsrechnung: Fallbeispiel (Version 1)
C10: Fallbeispiel FB4 = FB3
C11: Es wird das gleiche Fallbeispiel wie bei der Gewinn- bzw. Rentabilitätsvergleichsrechnung behandelt.
C12: Der Gründer Max Muster plant zur Erweiterung des Service-Angebots seines neuen Unternehmens die
C13: Anschaffung einer Pkw-Waschanlage (speziell für E-Autos).
C14: Geplante Durchsatzleistung der Anlage: | E14: 6000 | F14: (Anzahl Pkw's [ME/a]),
C15: Geplanter Durchschnittspreis für die Nutzung der Anlage: | F15: 10 | G15: [EUR/Pkw].
C17: Folgende zwei Angebote mit den nachstehend aufgeführten Daten kommen in die engere Auswahl:
C19: Nr. | D19: Angabe | E19: Maßeinheit | F19: Angebot 1 | G19: Angebot 2
C20: 1 | D20: Anschaffungskosten | E20: EUR | F20: 29400 | G20: 44600
C21: =C20+1 -> 2 | D21: Restwert | E21: EUR | F21: 600 | G21: 3500
C22: =C21+1 -> 3 | D22: Nutzungsdauer | E22: Jahre [a] | F22: 6 | G22: 6
C23: 4 | D23: Durchsatzleistung | E23: ME/a | F23: =E14 -> 6000 | G23: =F23 -> 6000
C24: 5 | D24: Kalkulatorischer Zinssatz | E24: % p .a. | F24: 6 | G24: =F24 -> 6
C25: 6 | D25: Sonstige fixe Kosten | E25: EUR/a | F25: 600 | G25: 3000
C26: 7 | D26: variable Personalkosten | E26: EUR/ME | F26: 4 | G26: 3.6
C27: 8 | D27: variable Energiekosten (Strom, Wasser) | E27: EUR/ME | F27: 3.2 | G27: 3
C28: 9 | D28: sonstige variable Kosten | E28: EUR/ME | F28: 0.9 | G28: 0.55
C30: Aufgabe: Ermitteln Sie durch Vergleich der Amortisationsdauer, welches der beiden Angebote zur Realisierung
C31: vorzuschlagen ist!
C33: Berechnungstabelle
C34: 01 | D34: Anschaffungskosten ./. Restwert | E34: EUR/a
C35: 02 | D35: kalkulatorische Abschreibungen | E35: EUR/a
C36: 03 | D36: kalkulatorische Zinsen | E36: EUR/a
C37: 04 | D37: sonstige fixe Kosten | E37: EUR/a
C38: 05 | D38: Fixe Kosten gesamt | E38: EUR/a
C39: 06 | D39: variable Personalkosten | E39: EUR/a
C40: 07 | D40: variable Energiekosten (Strom, Wasser) | E40: EUR/a
C41: 08 | D41: sonstige variable Kosten | E41: EUR/a
C42: 09 | D42: Variable Kosten gesamt | E42: EUR/a
C43: 10 | D43: Gesamtkosten | E43: EUR/a
C44: 11 | D44: Erlöse gesamt | E44: EUR/a
C45: 12 | D45: Gewinn = Erlöse ./. Kosten | E45: EUR/a
C46: 13 | D46: Gewinn + kalkulat. Abschreibungen | E46: EUR/a
C47: 14 | D47: Amortisationszeit tAm | E47: Jahre
C48: 15 | D48: Wertung
C50: Um eine praxisbezogenere Lösung zu finden, sollte ein anderes Vorgehen gewählt werden:
C51: Für alle in die Berechnung der Amortisationszeit eingehenden Größen sollten die Daten für die einzelnen Jahre der
C52: Nutzungsdauer ermittelt werden, um dann statistisch genauere Mittelwert für die Größen dG und dQ zu finden.
C53: Die Fortsetzung des Fallbeispiels in der nachfolgenden Tabelle soll dies demonstrieren.

Sheet 05_Amortisation_2L (hidden)
C4: Investitionsrechnung
C6: 2. Statische Methoden der Investitionsrechnung
C8: 2.7 Amortisationsvergleichsrechnung: Fallbeispiel (Version 1)
C10: Fallbeispiel FB4 = FB3
C11: Es wird das gleiche Fallbeispiel wie bei der Gewinn- bzw. Rentabilitätsvergleichsrechnung behandelt.
C12: Der Gründer Max Muster plant zur Erweiterung des Service-Angebots seines neuen Unternehmens die
C13: Anschaffung einer Pkw-Waschanlage (speziell für E-Autos).
C14: Geplante Durchsatzleistung der Anlage: | E14: 6000 | F14: (Anzahl Pkw's [ME/a]),
C15: Geplanter Durchschnittspreis für die Nutzung der Anlage: | F15: 10 | G15: [EUR/Pkw].
C17: Folgende zwei Angebote mit den nachstehend aufgeführten Daten kommen in die engere Auswahl:
C19: Nr. | D19: Angabe | E19: Maßeinheit | F19: Angebot 1 | G19: Angebot 2
C20: 1 | D20: Anschaffungskosten | E20: EUR | F20: 29400 | G20: 44600
C21: =C20+1 -> 2 | D21: Restwert | E21: EUR | F21: 600 | G21: 3500
C22: =C21+1 -> 3 | D22: Nutzungsdauer | E22: Jahre [a] | F22: 6 | G22: 6
C23: 4 | D23: Durchsatzleistung | E23: ME/a | F23: =E14 -> 6000 | G23: =F23 -> 6000
C24: 5 | D24: Kalkulatorischer Zinssatz | E24: % p .a. | F24: 6 | G24: =F24 -> 6
C25: 6 | D25: Sonstige fixe Kosten | E25: EUR/a | F25: 600 | G25: 3000
C26: 7 | D26: variable Personalkosten | E26: EUR/ME | F26: 4 | G26: 3.6
C27: 8 | D27: variable Energiekosten (Strom, Wasser) | E27: EUR/ME | F27: 3.2 | G27: 3
C28: 9 | D28: sonstige variable Kosten | E28: EUR/ME | F28: 0.9 | G28: 0.55
C30: Aufgabe: Ermitteln Sie durch Vergleich der Amortisationsdauer, welches der beiden Angebote zur Realisierung
C31: vorzuschlagen ist!
C33: Berechnungstabelle
C34: 01 | D34: Anschaffungskosten ./. Restwert | E34: EUR/a | F34: =F20-F21 -> 28800 | G34: =G20-G21 -> 41100
C35: 02 | D35: kalkulatorische Abschreibungen | E35: EUR/a | F35: =(F20-F21)/F22 -> 4800 | G35: =(G20-G21)/G22 -> 6850
C36: 03 | D36: kalkulatorische Zinsen | E36: EUR/a | F36: =(F20+F21)/2*F24/100 -> 900 | G36: =(G20+G21)/2*G24/100 -> 1443
C37: 04 | D37: sonstige fixe Kosten | E37: EUR/a | F37: =F25 -> 600 | G37: =G25 -> 3000
C38: 05 | D38: Fixe Kosten gesamt | E38: EUR/a | F38: =SUM(F35:F37) -> 6300 | G38: =SUM(G35:G37) -> 11293
C39: 06 | D39: variable Personalkosten | E39: EUR/a | F39: =F26*F23 -> 24000 | G39: =G26*G23 -> 21600
C40: 07 | D40: variable Energiekosten (Strom, Wasser) | E40: EUR/a | F40: =F27*F23 -> 19200 | G40: =G27*G23 -> 18000
C41: 08 | D41: sonstige variable Kosten | E41: EUR/a | F41: =F28*F23 -> 5400 | G41: =G28*G23 -> 3300
C42: 09 | D42: Variable Kosten gesamt | E42: EUR/a | F42: =SUM(F39:F41) -> 48600 | G42: =SUM(G39:G41) -> 42900
C43: 10 | D43: Gesamtkosten | E43: EUR/a | F43: =F38+F42 -> 54900 | G43: =G38+G42 -> 54193
C44: 11 | D44: Erlöse gesamt | E44: EUR/a | F44: =E14*F15 -> 60000 | G44: =E14*F15 -> 60000
C45: 12 | D45: Gewinn = Erlöse ./. Kosten | E45: EUR/a | F45: =F44-F43 -> 5100 | G45: =G44-G43 -> 5807
C46: 13 | D46: Gewinn + kalkulat. Abschreibungen | E46: EUR/a | F46: =F45+F35 -> 9900 | G46: =G45+G35 -> 12657
C47: 14 | D47: Amortisationszeit tAm | E47: Jahre | F47: =F34/F46 -> 2.909090909 | G47: =G34/G46 -> 3.24721498
C48: 15 | D48: Wertung | F48: =IF(F47<G47,"Angebot 1 besser!","") -> Angebot 1 besser! | G48: =IF(G47<F47,"Angebot 2 besser!","") -> 
C50: Man sieht, dass laut Amortisationsvergleichsrechnung nunmehr wieder das Angebot 2 besser als das Angebot 1 ist!
C51: Um eine praxisbezogenere Lösung zu finden, sollte ein anderes Vorgehen gewählt werden:
C52: Für alle in die Berechnung der Amortisationszeit eingehenden Größen sollten die Daten für die einzelnen Jahre der
C53: Nutzungsdauer ermittelt werden, um dann statistisch genauere Mittelwert für die Größen dG und dQ zu finden.
C54: Die Fortsetzung des Fallbeispiels in der nachfolgenden Tabelle soll dies demonstrieren.

Sheet 05_Amortisation_3A
C4: Investitionsrechnung
C6: 2. Statische Methoden der Investitionsrechnung
C8: 2.8 Amortisationsvergleichsrechnung: Fallbeispiel (Version 2)
C10: Fallbeispiel FB4 = FB3
C11: Es wird das gleiche Fallbeispiel wie bei der Amortisationsvergleichsrechnung (Version 1) behandelt.
C12: Der Gründer Max Muster plant zur Erweiterung des Service-Angebots seines neuen Unternehmens die
C13: Anschaffung einer Pkw-Waschanlage (speziell für E-Autos).
C14: Geplante Durchsatzleistung der Anlage: | F14: 6000 | G14: (Anzahl Pkw's [ME/a]),
C15: Geplanter Durchschnittspreis für die Nutzung der Anlage: | G15: 10 | H15: [EUR/Pkw].
C17: Es stehen wieder die zwei Angebote mit den nachstehend aufgeführten Daten zur Auswahl, jedoch
C18: wird ein anderes Bewertungskriterium angewendet:
C19: Die Entscheidung fällt für jenes Angebot, bei dessen Umsetzung am ehesten eine Amortisationszeit
C20: von tAm < 3 Jahren erreichet wird.
C22: Aufgabe: Ermitteln Sie, bei welchem der beiden Angebote am frühesten
C23: eine Amortisationszeit von tAM < 3 Jahre erreicht werden kann!
C25: Nr. | D25: Angabe | E25: Jahr | F25: Maßeinheit | G25: Angebot 1 | H25: tAm < 3 | I25: Angebot 2 | J25: tAm < 3?
C26: 1 | D26: Anschaffungskosten | F26: EUR | G26: 29400 | I26: 44600
C27: =C26+1 -> 2 | D27: Restwert | F27: EUR | G27: 600 | I27: 3500
C28: =C27+1 -> 3 | D28: Nutzungsdauer | F28: Jahre [a] | G28: 6 | I28: 6
C29: 4 | D29: durchschnittliche Abschreibungen | F29: EUR/a | G29: =(G26-G27)/G28 -> 4800 | I29: =(I26-I27)/I28 -> 6850
C30: =C29+1 -> 5 | D30: geschätzter Gewinn | E30: 1 | F30: EUR/a | G30: 3800 | I30: 6750
C31: =C30+1 -> 6 | D31: geschätzter Gewinn | E31: =E30+1 -> 2 | F31: EUR/a | G31: 4400 | I31: 7100
C32: 7 | D32: geschätzter Gewinn | E32: =E31+1 -> 3 | F32: EUR/a | G32: 5100 | I32: 6600
C33: 8 | D33: geschätzter Gewinn | E33: 4 | F33: EUR/a | G33: 5400 | I33: 5800
C34: 9 | D34: geschätzter Gewinn | E34: 5 | F34: EUR/a | G34: 5700 | I34: 4600
C35: 10 | D35: geschätzter Gewinn | E35: 6 | F35: EUR/a | G35: 6200 | I35: 4000
C36: 11 | D36: Vergleichs-Amorti-sationszeit (Version 1) | F36: Jahre | G36: ='05_Amortisation_2L'!F47 -> 2.909090909 | I36: ='05_Amortisation_2L'!G47 -> 3.24721498
C37: 12 | D37: Wertung | I37: =IF(I36<G36,"Angebot 2 ist besser!","") -> 
C39: Kommentar:

Sheet 06_Kapitalwert_1
C4: Investitionsrechnung
C6: 3. Dynamische Methoden der Investitionsrechnung
C8: 3.1 Merkmale
C9: Während sich die Methoden der statischen Investitionsrechnung nur auf eine einzige Rechnungsperiode (z. B. ein Geschäftsjahr)
C10: sowie auf die ausschließliche Verwendung von Kosten und Erlösen als Rechnungsgrößen beziehen, werden bei den Methoden der
C11: dynamischen Investitionsrechnung immer mehrere Nutzungsperioden betrachtet. Dies bedeutet, dass die periodenbezogenen
C12: Werte der Einzahlungen/Einnahmen und der Auszahlungen/Ausgaben einzeln erfasst, wobei die Zukunftswerte der Zahlungen
C13: unter Nutzung finanzmathematischer Berechnungen durch Abzinsung auf den Barwert vergleichbar gemacht werden.
C14: Zu den dynamischen Methoden der Investitionsrechnung werden folgende Vorgehensweisen gerechnet:
D15: - die Kapitalwertmethode,
D16: - die Methode des internen Zinsfußes und
D17: - die Annuitätenmethode.
C18: Diese Methoden werden im Weiteren kurz vorgestellt. Zugleich können hierzu wieder Fallbeispiele bearbeitet werden.
C20: 3.2 Kapitalwertmethode: Grundlagen, Formeln
C21: Die Kapitalwertmethode ist ein Verfahren der dynamischen Investitionsrechnung zur Beurteilung der Vorteilhaftigkeit einer
C22: Investition im Rahmen einer Investitionsentscheidung.
C23: Diese Methode basiert auf der Ermittlung des Kapitalwertes C0 für das betreffende Investitionsvorhaben (Einzelobjekt) oder für
C24: vergleichbare Alternativen eines Investitionsvorhabens.
C25: Als Kapitalwert (Symbol C0) einer Investition wird im Rahmen der dynamischen Investitionsrechnung die Differenz zwischen
C26: dem Barwert der investitionsbezogenen Einzahlungen und dem Barwert der investitionsbezogenen Auszahlungen verstanden.
C27: Formel:
L29: (3.1) bzw. | U29: (3.2)
C32: Es bedeuten:
E33: a0 | F33: = | G33: Anschaffungskosten des Investitionsobjekts [EUR], Zeitpunkt t = 0,
E34: üt | F34: = | G34: jährliche Überschüsse [EUR/a] als Differenz zwischen Einzahlungen et und Auszahlungen at,
E35: ln | F35: = | G35: Liquidationswert [EUR] des Objekts am Ende der Nutzungsdauer,
E36: i | F36: = | G36: kalkulatorischer Zinssatz [% p. a.], | N36: q = | O36: Hilfsgröße mit q = 1 + i
E37: t | F37: = | G37: Nutzungsjahre, mit t = 1, 2, …, n.
C53: Ein positiver Kapitalwert (C0 > 0) zeigt an, dass bei Realisierung des betreffenden Investitionsobjektes zu erwarten ist, dass die
C54: Summe der die Barwerte der abgezinsten Überschüsse den Betrag der Anschaffungskosten übertreffen und so ein "Gewinn"
C55: erwirtschaftet werden kann. Dies soll nachfolgend an einem Fallbeispiel untersucht werden.

Sheet 05_Amortisation_3L (hidden)
C4: Investitionsrechnung
C6: 2. Statische Methoden der Investitionsrechnung
C8: 2.8 Amortisationsvergleichsrechnung: Fallbeispiel (Version 2)
C10: Fallbeispiel FB4 = FB3
C11: Es wird das gleiche Fallbeispiel wie bei der Amortisationsvergleichsrechnung (Version 1) behandelt.
C12: Der Gründer Max Muster plant zur Erweiterung des Service-Angebots seines neuen Unternehmens die
C13: Anschaffung einer Pkw-Waschanlage (speziell für E-Autos).
C14: Geplante Durchsatzleistung der Anlage: | F14: 6000 | G14: (Anzahl Pkw's [ME/a]),
C15: Geplanter Durchschnittspreis für die Nutzung der Anlage: | G15: 10 | H15: [EUR/Pkw].
C17: Es stehen wieder die zwei Angebote mit den nachstehend aufgeführten Daten zur Auswahl, jedoch
C18: wird ein anderes Bewertungskriterium angewendet:
C19: Die Entscheidung fällt für jenes Angebot, bei dessen Umsetzung am ehestens eine Amortisationszeit
C20: von tAm < 3 Jahren erreichet wird.
C22: Aufgabe: Ermitteln Sie, bei welchem der beiden Angebote am frühesten eine Amortisationszeit
C23: von tAM < 3 Jahre erreicht werden kann!
C25: Nr. | D25: Angabe | E25: Jahr | F25: Maßeinheit | G25: Angebot 1 | H25: tAm < 3 | I25: Angebot 2 | J25: tAm < 3?
C26: 1 | D26: Anschaffungskosten | F26: EUR | G26: 29400 | I26: 44600
C27: =C26+1 -> 2 | D27: Restwert | F27: EUR | G27: 600 | I27: 3500
C28: =C27+1 -> 3 | D28: Nutzungsdauer | F28: Jahre [a] | G28: 6 | I28: 6
C29: 4 | D29: durchschnittliche Abschreibungen dQ | F29: EUR/a | G29: =(G26-G27)/G28 -> 4800 | I29: =(I26-I27)/I28 -> 6850
C30: =C29+1 -> 5 | D30: geschätzter Gewinn | E30: 1 | F30: EUR/a | G30: 3800 | H30: =(G26-G27)/((G30/E30)+G29) -> 3.348837209 | I30: 6750 | J30: =((I26-I27)/((I30/E30)+I29)) -> 3.022058824
C31: =C30+1 -> 6 | D31: geschätzter Gewinn | E31: =E30+1 -> 2 | F31: EUR/a | G31: 4400 | H31: =(G26-G27)/((G30+G31)/E31+G29) -> 3.235955056 | I31: 7100 | J31: =((I26-I27)/((I30+I31)/E31+I29)) -> 2.983666062
C32: 7 | D32: geschätzter Gewinn | E32: =E31+1 -> 3 | F32: EUR/a | G32: 5100 | H32: =((G26-G27)/((G30+G31+G32)/E32+G29)) -> 3.119133574 | I32: 6600 | J32: =((I26-I27)/((I30+I31+I32)/E32+I29)) -> 3.007317073
C33: 8 | D33: geschätzter Gewinn | E33: 4 | F33: EUR/a | G33: 5400 | H33: =((G26-G27)/((G30+G31+G32+G33)/E33+G29)) -> 3.039577836 | I33: 5800 | J33: =((I26-I27)/((I30+I31+I32+I33)/E33+I29)) -> 3.064305685
C34: 9 | D34: geschätzter Gewinn | E34: 5 | F34: EUR/a | G34: 5700 | H34: =((G26-G27)/((G30+G31+G32+G33+G34)/E34+G29)) -> 2.975206612 | I34: 4600 | J34: =((I26-I27)/((I30+I31+I32+I33+I34)/E34+I29)) -> 3.156682028
C35: 10 | D35: geschätzter Gewinn | E35: 6 | F35: EUR/a | G35: 6200 | H35: =((G26-G27)/((G30+G31+G32+G33+G34+G35)/E35+G29)) -> 2.909090909 | I35: 4000 | J35: =((I26-I27)/((I30+I31+I32+I33+I34+I35)/E35+I29)) -> 3.246872943
C36: 11 | D36: Vergleichs-Amorti-sationszeit (Version 1) | F36: Jahre | G36: ='05_Amortisation_2L'!F47 -> 2.909090909 | I36: ='05_Amortisation_2L'!G47 -> 3.24721498
C37: 12 | D37: Wertung | I37: =IF(I36<G36,"Angebot 2 ist besser!","") ->  | J37: Angebot 2 ist bei Version 2 besser!
C39: Kommentar:
C40: Mit der Anlage nach Angebot 2 können offenbar in den ersten Jahren mehr Kunden angezogen werden, so dass
C41: höhere Gewinne erzielt werden könnten.
C42: Der Zielwert tAM < 3 wird daher schon nach dem 2. Einsatzjahr erreicht.

Sheet Blanko1 (hidden)

Sheet 06_Kapitalwert_2A
C4: Investitionsrechnung
C6: 3. Dynamische Methoden der Investitionsrechnung
C8: 3.3 Kapitalwertmethode: Fallbeispiel
C10: Der Unternehmer Max Muster plant die Anschaffung von Ladestationen für E-Autos.
C11: Für die Entscheidungsfindung unter Anwendung der Kapitalwertmethode stehen folgende Daten zur Verfügung:
C13: Nr. | D13: Angabe | E13: Maßeinheit | F13: Angebot 1 | G13: Angebot 2
C14: 1 | D14: Anschaffungs-kosten | E14: EUR | F14: 12500 | G14: 14500
C15: =C14+1 -> 2 | D15: Restwert = Liquidationswert | E15: EUR | F15: 2000 | G15: 4000
C16: =C15+1 -> 3 | D16: Nutzungsdauer | E16: Jahre | F16: 6 | G16: =F16 -> 6 | H16: Hilfsgröße q = 1+ i/100
C17: 4 | D17: Kalkulator. Zinssatz | E17: % p. a. | F17: =K17/10 -> 7 | G17: =F17 -> 7 | I17: q = | J17: =1+F17/100 -> 1.07 | K17: 70
C19: Daten-Tabelle Angebot 1:
C20: Jahr | D20: Geplante Einzahlungen [EUR/a] | E20: Geplante Auszahlungen [EUR/a] | F20: geplante Überschüsse [EUR/a] | G20: Abzinsungs- faktor | H20: Barwert
C21: 1 | D21: 120500 | E21: 119200
C22: =C21+1 -> 2 | D22: 130800 | E22: 129400
C23: =C22+1 -> 3 | D23: 135000 | E23: 133500
C24: 4 | D24: 140600 | E24: 138900
C25: 5 | D25: 150300 | E25: 146400
C26: 6 | D26: 152400 | E26: 148400
C27: 6
C28: Summe
C29: ./. Anschaffungskosten
C30: = Kapitalwert C0
C32: Daten-Tabelle Angebot 2:
C33: Jahr | D33: Geplante Einzahlungen [EUR/a] | E33: Geplante Auszahlungen [EUR/a] | F33: geplante Überschüsse [EUR/a] | G33: Abzinsungs- faktor | H33: Barwert
C34: 1 | D34: 122500 | E34: 120300
C35: =C34+1 -> 2 | D35: 131600 | E35: 128900
C36: =C35+1 -> 3 | D36: 136000 | E36: 132900
C37: 4 | D37: 140800 | E37: 137100
C38: 5 | D38: 148300 | E38: 144400
C39: 6 | D39: 151400 | E39: 147300
C40: 6
C41: Summe
C42: ./. Anschaffungskosten
C43: = Kapitalwert C0
C45: Kommentar:

Sheet 06_Kapitalwert_2L (hidden)
C4: Investitionsrechnung
C6: 3. Dynamische Methoden der Investitionsrechnung
C8: 3.3 Kapitalwertmethode: Fallbeispiel
C10: Der Unternehmer Max Muster plant die Anschaffung von Ladestationen für E-Autos.
C11: Für die Entscheidungsfindung unter Anwendung der Kapitalwertmethode stehen folgende Daten zur Verfügung:
C13: Nr. | D13: Angabe | E13: Maßeinheit | F13: Angebot 1 | G13: Angebot 2
C14: 1 | D14: Anschaffungs-kosten | E14: EUR | F14: 12500 | G14: 14500
C15: =C14+1 -> 2 | D15: Restwert = Liquidationswert | E15: EUR | F15: 2000 | G15: 4000
C16: =C15+1 -> 3 | D16: Nutzungsdauer | E16: Jahre | F16: 6 | G16: =F16 -> 6 | H16: Hilfsgröße q = 1+ i/100
C17: 4 | D17: Kalkulator. Zinssatz | E17: % p. a. | F17: =K17/10 -> 7 | G17: =F17 -> 7 | I17: q = | J17: =1+F17/100 -> 1.07 | K17: 70
C19: Daten-Tabelle Angebot 1:
C20: Jahr | D20: Geplante Einzahlungen [EUR/a] | E20: Geplante Auszahlungen [EUR/a] | F20: geplante Überschüsse [EUR/a] | G20: Abzinsungs- faktor | H20: Barwert
C21: 1 | D21: 120500 | E21: 119200 | F21: =D21-E21 -> 1300 | G21: =1/q^C21 -> 0.9345794393 | H21: =F21*G21 -> 1214.953271
C22: =C21+1 -> 2 | D22: 130800 | E22: 129400 | F22: =D22-E22 -> 1400 | G22: 0.8734387283 | H22: =F22*G22 -> 1222.81422
C23: =C22+1 -> 3 | D23: 135000 | E23: 133500 | F23: =D23-E23 -> 1500 | G23: 0.8162978769 | H23: 1224.446815
C24: 4 | D24: 140600 | E24: 138900 | F24: 1700 | G24: 0.762895212 | H24: 1296.92186
C25: 5 | D25: 150300 | E25: 146400 | F25: 3900 | G25: 0.7129861795 | H25: 2780.6461
C26: 6 | D26: 152400 | E26: 148400 | F26: 4000 | G26: 0.6663422238 | H26: 2665.368895
C27: 6 | F27: =F15 -> 2000 | G27: 0.6663422238 | H27: 1332.684448
C28: Summe | H28: =SUM(H21:H27) -> 11737.83561
C29: ./. Anschaffungskosten | H29: =F14 -> 12500
C30: = Kapitalwert C0 | H30: =H28-H29 -> -762.1643907
C32: Daten-Tabelle Angebot 2:
C33: Jahr | D33: Geplante Einzahlungen [EUR/a] | E33: Geplante Auszahlungen [EUR/a] | F33: geplante Überschüsse [EUR/a] | G33: Abzinsungs- faktor | H33: Barwert
C34: 1 | D34: 122500 | E34: 120300 | F34: =D34-E34 -> 2200 | G34: =1/q^C34 -> 0.9345794393 | H34: =F34*G34 -> 2056.074766
C35: =C34+1 -> 2 | D35: 131600 | E35: 128900 | F35: =D35-E35 -> 2700 | G35: 0.8734387283 | H35: =F35*G35 -> 2358.284566
C36: =C35+1 -> 3 | D36: 136000 | E36: 132900 | F36: =D36-E36 -> 3100 | G36: 0.8162978769 | H36: 2530.523418
C37: 4 | D37: 140800 | E37: 137100 | F37: 3700 | G37: 0.762895212 | H37: 2822.712285
C38: 5 | D38: 148300 | E38: 144400 | F38: 3900 | G38: 0.7129861795 | H38: 2780.6461
C39: 6 | D39: 151400 | E39: 147300 | F39: 4100 | G39: 0.6663422238 | H39: 2732.003118
C40: 6 | F40: =G15 -> 4000 | G40: 0.6663422238 | H40: 2665.368895
C41: Summe | H41: =SUM(H34:H40) -> 17945.61315
C42: ./. Anschaffungskosten | H42: =G14 -> 14500
C43: = Kapitalwert C0 | H43: =H41-H42 -> 3445.613149
C45: =IF(H43>H30,"Offenbar ist das Angebot 2 dem Angebot 1 vorzuziehen!","Offenbar ist das Angebot 1 dem Angebot 2 vorzuzehen!") -> Offenbar ist das Angebot 2 dem Angebot 1 vorzuziehen!
C46: Wenn Sie per Drehfeld den Zinssatz ändern, ist zu erkennen, dass dieser - bei gleichen Zahlungsströmen -
C47: einen großen Einfluss auf den Kapitalwert hat!
C48: In der Praxis ist es des Weiteren schwierig, die Ein- und Auszahlungen für das jeweilige Investitionsobjekt
C49: halbwegs genau zu erfassen.
C50: Dies führt zu weiteren Unsicherheiten in Bezug auf die Berechnung des Kapitalwertes C0.

Sheet 07_Int_Zinsfuss_1
C4: Investitionsrechnung
C6: 3. Dynamische Methoden der Investitionsrechnung
C8: 3.3 Interne Zinsfuß-Methode: Grundlagen, Formeln
C9: Die interne Zinsfuß-Methode ist ein Verfahren der dynamischen Investitionsrechnung, das darauf abzielt, einen
C10: sog. internen Zinsfuß als Kalkulationszinssatz iint [% p. a.] zu ermitteln, bei dem der Kapitalwert C0, welcher die Zahlungs-
C11: ströme bei der betreffenden Investition abbildet, zu einem Wert C0 = 0 führt:
C12: Formel:
J13: Es bedeuten:
J14: a0 | K14: = | L14: Anschaffungskosten des Investitionsobjekts [EUR], Zeitpunkt t = 0,
J15: üt | K15: = | L15: jährliche Überschüsse [EUR/a] ,
J16: ln | K16: = | L16: Liquidationswert [EUR] des Objekts am Ende der Nutzungsdauer,
J17: i | K17: = | L17: kalkulatorischer Zinssatz [% p. a.],
J18: t | K18: = | L18: Nutzungsjahre, mit t = 1, 2, …, n.
C19: Zur Ermittlung des internen Zinsfußes iint werden zunächst unterschiedliche Zinssätze als Versuchszinssätze frei gewählt.
C20: Für diese Zinssätze wird der jeweilige Kapitalwert C0, k tabellarisch ermittelt, woraus sich die gesuchte Größe iint wie folgt
C21: bestimmen lässt:
J22: Es bedeuten:
J23: iint | K23: = | L23: interner Zinssatz [% p. a.],
J24: i1, i2 | K24: = | L24: Versuchszinssätze [% p.a.],
J25: C0, 1 | K25: = | L25: Kapitalwert der Investition bei Zinssatz i1 [EUR],
J26: C0, 2 | K26: = | L26: Kapitalwert der Investition bei Zinssatz i2 [EUR].
C27: Grafik:
C44: Betrachten wir hierzu ein Fallbeispiel (Folgeblatt).

Sheet 07_Int_Zinsfuss_2A
C4: Investitionsrechnung
C6: 3. Dynamische Methoden der Investitionsrechnung
C8: 3.4 Interne Zinsfuß-Methode: Fallbeispiel
C10: Der Unternehmer Max Muster plant die Anschaffung von Ladestationen für E-Autos.
C11: Für die Entscheidungsfindung unter Anwendung der internen Zinsfuß-Methode stehen folgende Daten
C13: zur Verfügung:
C15: Nr. | D15: Angabe | E15: Maßeinheit | F15: Daten | G15: q = 1 + i
C16: 1 | D16: Anschaffungs-kosten | E16: EUR | F16: 14500
C17: =C16+1 -> 2 | D17: Restwert = Liquidationswert | E17: EUR | F17: 4000
C18: =C17+1 -> 3 | D18: Nutzungsdauer | E18: Jahre | F18: 6
C19: 4 | D19: Kalkulator. Zinssatz | E19: % p. a. | F19: =H19/10 -> 7 | G19: =1+F19/100 -> 1.07 | H19: 70
C20: 5 | D20: Versuchs-Zinssatz 1 | E20: % p .a. | F20: =H20/10 -> 4 | G20: =1+F20/100 -> 1.04 | H20: 40
C21: 6 | D21: Versuchs-Zinssatz 2 | E21: % p .a. | F21: =H21/10 -> 14 | G21: =1+F21/100 -> 1.14 | H21: 140
C23: Daten-Tabelle:
C24: Jahr | D24: Versuchszinssatz i1 | G24: Versuchszinssatz i2
D25: Geplante Überschüsse | E25: Abzinsungs-faktor | F25: Barwert | G25: Abzinsungs-faktor | H25: Barwert
C26: 1 | D26: 2200
C27: =C26+1 -> 2 | D27: 2700
C28: =C27+1 -> 3 | D28: 3100
C29: 4 | D29: 3700
C30: 5 | D30: 3900
C31: 6 | D31: 4100
C32: 6 | D32: =F17 -> 4000
C33: Summe
C34: Anschaffungskosten
C35: Kapitalwert C0, 1 bzw. C0, 2
C37: Interner Zinsfuß iint = | F37: d. h. | H37: % p. a.
D39: Formel:

Sheet 07_Int_Zinsfuss_2L (hidden)
C4: Investitionsrechnung
C6: 3. Dynamische Methoden der Investitionsrechnung
C8: 3.4 Interne Zinsfuß-Methode: Fallbeispiel
C10: Der Unternehmer Max Muster plant die Anschaffung von Ladestationen für E-Autos.
C11: Für die Entscheidungsfindung unter Anwendung der internen Zinsfuß-Methode stehen folgende Daten
C13: zur Verfügung:
C15: Nr. | D15: Angabe | E15: Maßeinheit | F15: Daten | G15: q = 1 + i
C16: 1 | D16: Anschaffungs-kosten | E16: EUR | F16: 14500
C17: =C16+1 -> 2 | D17: Restwert = Liquidationswert | E17: EUR | F17: 4000
C18: =C17+1 -> 3 | D18: Nutzungsdauer | E18: Jahre | F18: 6
C19: 4 | D19: Kalkulator. Zinssatz | E19: % p. a. | F19: =H19/10 -> 7 | G19: =1+F19/100 -> 1.07 | H19: 70
C20: 5 | D20: Versuchs-Zinssatz 1 | E20: % p .a. | F20: =H20/10 -> 4 | G20: =1+F20/100 -> 1.04 | H20: 40
C21: 6 | D21: Versuchs-Zinssatz 2 | E21: % p .a. | F21: =H21/10 -> 14 | G21: =1+F21/100 -> 1.14 | H21: 140
C23: Daten-Tabelle:
C24: Jahr | D24: Versuchszinssatz i1 | G24: Versuchszinssatz i2
D25: Geplante Überschüsse | E25: Abzinsungs-faktor | F25: Barwert | G25: Abzinsungs-faktor | H25: Barwert
C26: 1 | D26: 2200 | E26: =1/q_3^C26 -> 0.9615384615 | F26: =D26*E26 -> 2115.384615 | G26: =1/q_4^C26 -> 0.8771929825 | H26: =D26*G26 -> 1929.824561
C27: =C26+1 -> 2 | D27: 2700 | E27: 0.924556213 | F27: =D27*E27 -> 2496.301775 | G27: 0.7694675285 | H27: =D27*G27 -> 2077.562327
C28: =C27+1 -> 3 | D28: 3100 | E28: 0.8889963587 | F28: 2755.888712 | G28: 0.6749715162 | H28: 2092.4117
C29: 4 | D29: 3700 | E29: 0.854804191 | F29: 3162.775507 | G29: 0.5920802774 | H29: 2190.697026
C30: 5 | D30: 3900 | E30: 0.8219271068 | F30: 3205.515716 | G30: 0.5193686644 | H30: 2025.537791
C31: 6 | D31: 4100 | E31: 0.7903145257 | F31: 3240.289555 | G31: 0.4555865477 | H31: 1867.904846
C32: 6 | D32: =F17 -> 4000 | E32: 0.7903145257 | F32: 3161.258103 | G32: 0.4555865477 | H32: 1822.346191
C33: Summe | F33: =SUM(F26:F32) -> 20137.41398 | H33: =SUM(H26:H32) -> 14006.28444
C34: Anschaffungskosten | F34: =F16 -> 14500 | H34: =F16 -> 14500
C35: Kapitalwert C0, 1 bzw. C0, 2 | F35: =F33-F34 -> 5637.413984 | H35: =H33-H34 -> -493.715558 | J35: Formel:
C37: Interner Zinsfuß iint = | E37: =i_3/100-C0_1*(i_4/100-i_3/100)/(C0_2-C0_1) -> 0.1319473964 | F37: d. h. | G37: =E37*100 -> 13.19473964 | H37: % p. a.
C39: Berechnungstabelle für graphische Lösung:
C40: Zins-satz | D40: Kapitalwert
C41: 0 | D41: =-a_0+$D$26/((1+C41/100)^1)+$D$27/((1+C41/100)^2)+$D$28/((1+C41/100)^3)+$D$29/((1+C41/100)^4)+$D$30/((1+C41/100)^5)+$D$31/((1+C41/100)^6)+$D$32/((1+C41/100)^6) -> 9200
C42: =C41+1 -> 1 | D42: 8230.756476
C43: =C42+1 -> 2 | D43: 7316.364122
C44: =C43+1 -> 3 | D44: 6453.069244
C45: 4 | D45: 5637.413984
C46: 5 | D46: 4866.210161
C47: 6 | D47: 4136.515669
C48: 7 | D48: 3445.613149
C49: 8 | D49: 2790.990701
C50: 9 | D50: 2170.324429
C51: 10 | D51: 1581.46262
C52: 11 | D52: 1022.41139
C53: 12 | D53: 491.3216608
C54: 13 | D54: -13.52268194
C55: 14 | D55: -493.715558
C56: 15 | D56: -950.7384963
C57: 16 | D57: -1385.969569

Sheet 08_Annuitaet_1
C4: Investitionsrechnung
C6: 3. Dynamische Methoden der Investitionsrechnung
C8: 3.5 Annuitäten-Methode: Grundlagen, Formeln
C9: Die Annuitäten-Methode ist ein Verfahren der dynamischen Investitionsrechnung, das darauf abzielt, zu ermitteln,
C10: wie hoch der der jährliche Netto-Überschuss (= Annuität A [EUR/a]) für den Fall sein muss, wenn der zu berechnende
C11: Kapitalwert C0 gleichmäßig auf die Nutzungsdauer des Investitionsobjekts verteilt wird.
C12: Formel:
J13: Es bedeuten:
J14: A = | K14: Annuität (jährliche Zahlung) [EUR/a],
J15: C0 = | K15: Kapitalwert [EUR]
J16: q = | K16: Hilfsgröße mit q = 1 + i, i = kalkulatorischer Zinssatz [-/a]
J17: n = | K17: Nutzungsdauer [Jahre]
C19: Der Ausdruck | H19: wird auch Kapitalwiedergewinnungsfaktor (KFW) bezeichnet,
H20: so dass gilt: | J20: A = C0 * KFW.
C21: Grafik:
C35: Eine Investition ist dann vorteilhaft, wenn die Annuität A - als gleicher jährlicher Netto-Überschuss - einen Wert
C36: größer Null (A > 0) annimmt.
C37: Betrachten wir hierzu ein Fallbeispiel.

Sheet 08_Annuitaet_2A
C4: Investitionsrechnung
C6: 3. Dynamische Methoden der Investitionsrechnung
C8: 3.5 Annuitäten-Methode: Fallbeispiel
C10: Der Unternehmer Max Muster plant die Anschaffung von Ladestationen für E-Autos.
C11: Für die Entscheidungsfindung unter Anwendung der internen Zinsfuß-Methode stehen folgende
C13: Daten zur Verfügung:
C15: Nr. | D15: Angabe | E15: Maßeinheit | F15: Daten | G15: q = 1 + i
C16: 1 | D16: Anschaffungs-kosten | E16: EUR | F16: 15000
C17: =C16+1 -> 2 | D17: Nutzungsdauer | E17: Jahre | F17: 6
C18: =C17+1 -> 3 | D18: Kalkulatorischer Zinssatz | E18: % p. a. | F18: =H18/10 -> 7.9 | G18: =1+F18/100 -> 1.079 | H18: 79
C20: Daten-Tabelle:
D21: Geplante Überschüsse | E21: Abzinsungs-faktor | F21: Barwert
C22: 1 | D22: 2500
C23: =C22+1 -> 2 | D23: 2900
C24: =C23+1 -> 3 | D24: 3100
C25: 4 | D25: 3700
C26: 5 | D26: 3900
C27: 6 | D27: 3700
C28: Summe
C29: Anschaffungskosten
C30: Kapitalwert C0
C32: KFW = | F32: A = | H32: [EUR/a]
E34: Formel:
C36: Die Kapitalwertmethode zeigt den Totalerfolg, also den Kapitalwert auf, der den Barwert all
C37: jener Zahlungen bezeichnet, die über die geforderte Mindestverzinsung und die Amortisation
C38: des eingesetzten Kapitals hinaus erwirtschaftet werden.
C40: Die Annuitätenmethode bezieht sich auf den Periodenerfolg, indem der Kapitalwert in gleich
C41: große jährliche Zahlungen umgerechnet wird.
C42: Der Kapitalwert wird damit auf die gesamte Periode gleichmäßig verteilt.

Sheet 08_Annuitaet_2L (hidden)
C4: Investitionsrechnung
C6: 3. Dynamische Methoden der Investitionsrechnung
C8: 3.5 Annuitäten-Methode: Fallbeispiel
C10: Der Unternehmer Max Muster plant die Anschaffung von Ladestationen für E-Autos.
C11: Für die Entscheidungsfindung unter Anwendung der internen Zinsfuß-Methode stehen folgende
C13: Daten zur Verfügung:
C15: Nr. | D15: Angabe | E15: Maßeinheit | F15: Daten | G15: q = 1 + i
C16: 1 | D16: Anschaffungs-kosten | E16: EUR | F16: 15000
C17: =C16+1 -> 2 | D17: Nutzungsdauer | E17: Jahre | F17: 6
C18: =C17+1 -> 3 | D18: Kalkulatorischer Zinssatz | E18: % p. a. | F18: =H18/10 -> 7.9 | G18: =1+F18/100 -> 1.079 | H18: 79
C20: Daten-Tabelle:
D21: Geplante Überschüsse | E21: Abzinsungs-faktor | F21: Barwert
C22: 1 | D22: 2500 | E22: =1/q_5^C22 -> 0.9267840593 | F22: =D22*E22 -> 2316.960148
C23: =C22+1 -> 2 | D23: 2900 | E23: 0.8589286926 | F23: =D23*E23 -> 2490.893209
C24: =C23+1 -> 3 | D24: 3100 | E24: 0.7960414204 | F24: 2467.728403
C25: 4 | D25: 3700 | E25: 0.737758499 | F25: 2729.706446
C26: 5 | D26: 3900 | E26: 0.6837428165 | F26: 2666.596984
C27: 6 | D27: 3700 | E27: 0.633681943 | F27: 2344.623189
C28: Summe | F28: =SUM(F22:F27) -> 15016.50838
C29: Anschaffungskosten | F29: =F16 -> 15000
C30: Kapitalwert C0 | F30: =F28-F29 -> 16.50837944
C32: KFW = | E32: =(q_5^n_5*(q_5-1))/(q_5^n_5-1) -> 0.2156595846 | F32: A = | G32: =KWF*C0_5 -> 3.560190253 | H32: [EUR/a]
E34: Formel:
C36: Die Kapitalwertmethode zeigt den Totalerfolg, also den Kapitalwert auf, der den Barwert all
C37: jener Zahlungen bezeichnet, die über die geforderte Mindestverzinsung und die Amortisation
C38: des eingesetzten Kapitals hinaus erwirtschaftet werden.
C40: Die Annuitätenmethode bezieht sich auf den Periodenerfolg, indem der Kapitalwert in gleich
C41: große jährliche Zahlungen umgerechnet wird.
C42: Der Kapitalwert wird damit auf die gesamte Periode gleichmäßig verteilt.
